fUSD/lending_fUSD_20260628
["ID","MTS","AMOUNT","RATE_DAILY","PERIOD"]
[426577756,1782623443000,-687.0,0.00030014,5]
[426577754,1782623443000,-277.48251953,0.00030002,5]
[426577755,1782623443000,-409.51748047,0.00030002,5]
[426577757,1782623443000,-153.28875434,0.00030046,2]
[426577759,1782623443000,-3760.88094853,0.0003008,20]
[426577750,1782623443000,-270.2249129,0.0003,2]
[426577765,1782623446000,-10222.11905147,0.0003008,20]
[426577772,1782623446000,-500.0,0.00030099,2]
[426577764,1782623446000,-488.98979923,0.00028172,2]
[426577773,1782623446000,-500.0,0.00030099,2]
[426577770,1782623446000,-500.0,0.00030099,2]
[426577771,1782623446000,-500.0,0.00030099,2]
[426577763,1782623446000,-446.01020077,0.00028172,2]
[426577768,1782623446000,-500.0,0.00030099,2]
[426577769,1782623446000,-500.0,0.00030099,2]
[426577767,1782623446000,-500.0,0.00030099,2]
[426577766,1782623446000,-154.2820049,0.00030097,7]
[426577778,1782623446000,-500.0,0.00030099,2]
[426577780,1782623446000,-500.0,0.00030099,2]
[426577781,1782623446000,-34282.55556065,0.000301,2]
[426577779,1782623446000,-500.0,0.00030099,2]
[426577784,1782623446000,-9417.03296916,0.000301,7]
[426577774,1782623446000,-500.0,0.00030099,2]
[426577776,1782623446000,-500.0,0.00030099,2]
[426577782,1782623446000,-558276.32315886,0.000301,7]
[426577775,1782623446000,-500.0,0.00030099,2]
[426577783,1782623446000,-421.15175099,0.000301,7]
[426577777,1782623446000,-500.0,0.00030099,2]
[426577785,1782623447000,-18.92503678,0.000301,7]
[426577786,1782623540000,1166.06,0.000289,120]
[426577787,1782623614000,-156.0,0.00015179,2]
[426577788,1782623626000,-4.0,0.00015179,2]
[426577789,1782623680000,-154.0,0.00015179,2]
[426577790,1782623692000,-56.719809,0.00015179,2]
[426577791,1782623692000,19949.6568,0.0003,120]
[426577793,1782623745000,33970.1218,0.0003,120]
[426577792,1782623745000,-151.7640228,0.00015,7]
[426577795,1782623758000,179.59,0.00027964,120]
[426577794,1782623758000,-153.0,0.0001796,2]
[426577796,1782623770000,-154.77801282,0.0001796,2]
[426577797,1782623823000,-153.0,0.00018148,2]
[426577798,1782623876000,-157.57173603,0.00018156,2]
[426577799,1782623889000,-92.42826397,0.00018156,2]
[426577802,1782624302000,-150.0,0.00018156,2]
[426577803,1782624356000,-193.0,0.00018156,2]
[426577805,1782624409000,-169.001,0.00018156,2]
[426577807,1782624422000,197.1424539,0.00037325,120]
[426577806,1782624422000,-130.999,0.00018156,2]
[426577808,1782624424000,188.555829,0.00018146,2]
[426577827,1782624433000,-150.0,0.00018156,2]
[426577822,1782624433000,-151.0,0.00018156,2]
[426577825,1782624433000,-150.0,0.00018156,2]
[426577823,1782624433000,-152.0,0.00018156,2]
[426577824,1782624433000,-150.0,0.00018156,2]
[426577821,1782624433000,-151.0,0.00018156,2]
[426577818,1782624433000,-151.0,0.00018156,2]
[426577820,1782624433000,-150.0,0.00018156,2]
[426577816,1782624433000,-153.0,0.00018156,2]
[426577817,1782624433000,-151.0,0.00018156,2]
[426577815,1782624433000,-151.0,0.00018156,2]
[426577814,1782624433000,-151.0,0.00018156,2]
[426577813,1782624433000,-151.0,0.00018156,2]
[426577811,1782624433000,-151.0,0.00018156,2]
[426577810,1782624433000,-151.0,0.00018156,2]
[426577812,1782624433000,-151.0,0.00018156,2]
[426577809,1782624433000,-250.0,0.00018156,2]
[426577819,1782624433000,-150.0,0.00018156,2]
[426577826,1782624433000,-150.0,0.00018156,2]
[426577833,1782624433000,-151.0,0.00018156,2]
[426577829,1782624433000,-152.0,0.00018156,2]
[426577848,1782624433000,-152.0,0.00018214,2]
[426577846,1782624433000,-152.0,0.00018156,2]
[426577845,1782624433000,-151.0,0.00018156,2]
[426577847,1782624433000,-151.0,0.00018165,2]
[426577844,1782624433000,-151.0,0.00018156,2]
[426577843,1782624433000,-150.0,0.00018156,2]
[426577842,1782624433000,-150.0,0.00018156,2]
[426577828,1782624433000,-152.0,0.00018156,2]
[426577840,1782624433000,-151.0,0.00018156,2]
[426577841,1782624433000,-151.0,0.00018156,2]
[426577837,1782624433000,-152.0,0.00018156,2]
[426577838,1782624433000,-153.0,0.00018156,2]
[426577835,1782624433000,-153.0,0.00018156,2]
[426577836,1782624433000,-150.0,0.00018156,2]
[426577830,1782624433000,-150.0,0.00018156,2]
[426577834,1782624433000,-150.0,0.00018156,2]
[426577832,1782624433000,-150.0,0.00018156,2]
[426577831,1782624433000,-153.0,0.00018156,2]
[426577839,1782624433000,-151.0,0.00018156,2]
[426577849,1782624434000,-160.0,0.00019924,2]
[426577851,1782624434000,-250.0,0.00019972,2]
[426577850,1782624434000,-160.0,0.00019936,2]
[426577853,1782624434000,-193.0,0.00019972,2]
[426577854,1782624434000,-500.0,0.00019972,2]
[426577855,1782624434000,-300.0,0.00019972,2]
[426577856,1782624434000,-664.13278037,0.00020125,2]
[426577857,1782624434000,-2082.110585,0.00021539,2]
[426577858,1782624434000,-1691.4289663,0.00021757,2]
[426577852,1782624434000,-250.0,0.00019972,2]
[426577859,1782624440000,-1363.2810337,0.00021757,2]
[426577860,1782624440000,-905.93953231,0.00021757,2]
[426577861,1782624474000,-1602.527,0.00021757,2]
[426577862,1782624487000,-1602.527,0.00021757,2]
[426577863,1782624499000,-423.60672749,0.00021757,2]
[426577864,1782624511000,-423.60672749,0.00021757,2]
[426577865,1782624523000,-500.0,0.00021757,2]
[426577866,1782624536000,-173.81,0.0002043,2]
[426577867,1782624546000,-9069.144616,0.0002043,2]
[426577885,1782624632000,-14156.7916104,0.00025607,2]
[426577882,1782624632000,-250.0,0.00023932,2]
[426577886,1782624632000,-150.0,0.00025675,7]
[426577889,1782624632000,-9999.99,0.00025675,2]
[426577888,1782624632000,-799.36,0.00025675,2]
[426577883,1782624632000,-274.16,0.00024352,3]
[426577880,1782624632000,-500.0,0.00021657,2]
[426577903,1782624632000,-151.71,0.00027039,2]
[426577879,1782624632000,-288.0893039,0.00020504,2]
[426577874,1782624632000,-4769.78180266,0.0002043,2]
[426577876,1782624632000,-151.0,0.0002043,2]
[426577877,1782624632000,-151.0,0.0002043,2]
[426577875,1782624632000,-160.0,0.0002043,2]
[426577872,1782624632000,-144.05519174,0.0002043,2]
[426577881,1782624632000,-250.0,0.00023054,2]
[426577878,1782624632000,-160.0,0.00020435,2]
[426577884,1782624632000,-250.0,0.00024864,2]
[426577905,1782624632000,-26942.65,0.0002711,2]
[426577887,1782624632000,-7959.07,0.00025675,2]
[426577890,1782624632000,-150.99,0.00025675,2]
[426577907,1782624632000,-217.32,0.00027166,2]
[426577906,1782624632000,-5000.0,0.00027148,2]
[426577902,1782624632000,-150.0,0.00027008,2]
[426577899,1782624632000,-150.0,0.00026447,2]
[426577898,1782624632000,-374.58401761,0.00026148,2]
[426577901,1782624632000,-1852.42,0.00026987,2]
[426577900,1782624632000,-166.66,0.00026683,30]
[426577896,1782624632000,-166.66,0.00026133,30]
[426577894,1782624632000,-9999.99,0.00025675,2]
[426577895,1782624632000,-288.0893039,0.00025721,2]
[426577904,1782624632000,-3563.04,0.00027049,2]
[426577892,1782624632000,-4999.99,0.00025675,2]
[426577893,1782624632000,-299.99,0.00025675,7]
[426577891,1782624632000,-7853.61,0.00025675,2]
[426577897,1782624632000,-462.05123013,0.00026148,2]
[426577935,1782624633000,-500.0,0.00027582,2]
[426577933,1782624633000,-500.0,0.00027582,2]
[426577931,1782624633000,-500.0,0.00027582,2]
[426577941,1782624633000,-500.0,0.00027582,2]
[426577934,1782624633000,-500.0,0.00027582,2]
[426577932,1782624633000,-500.0,0.00027582,2]
[426577937,1782624633000,-368.6002303,0.00027582,2]
[426577936,1782624633000,-500.0,0.00027582,2]
[426577946,1782624633000,-500.0,0.00027582,2]
[426577940,1782624633000,-500.0,0.00027582,2]
[426577939,1782624633000,-500.0,0.00027582,2]
[426577943,1782624633000,-500.0,0.00027582,2]
[426577953,1782624633000,-500.0,0.00027582,2]
[426577945,1782624633000,-500.0,0.00027582,2]
[426577942,1782624633000,-500.0,0.00027582,2]
[426577930,1782624633000,-500.0,0.00027582,2]
[426577947,1782624633000,-500.0,0.00027582,2]
[426577944,1782624633000,-500.0,0.00027582,2]
[426577938,1782624633000,-500.0,0.00027582,2]
[426577926,1782624633000,-500.0,0.00027582,2]
[426577929,1782624633000,-500.0,0.00027582,2]
[426577925,1782624633000,-688.36,0.00027562,2]
[426577908,1782624633000,-219.85,0.00027194,2]
[426577912,1782624633000,-12199.2,0.00027388,2]
[426577911,1782624633000,-307.0,0.000273,15]
[426577914,1782624633000,-672.23,0.00027397,10]
[426577909,1782624633000,-166.66,0.00027233,30]
[426577917,1782624633000,-500.0,0.000275,7]
[426577915,1782624633000,-560.19,0.00027397,10]
[426577910,1782624633000,-1145.8,0.00027299,2]
[426577924,1782624633000,-154.38313099,0.00027515,2]
[426577916,1782624633000,-466.83,0.00027397,10]
[426577919,1782624633000,-1500.0,0.00027515,2]
[426577928,1782624633000,-500.0,0.00027582,2]
[426577927,1782624633000,-500.0,0.00027582,2]
[426577948,1782624633000,-500.0,0.00027582,2]
[426577918,1782624633000,-1500.0,0.00027515,2]
[426577922,1782624633000,-1500.0,0.00027515,2]
[426577923,1782624633000,-1583.76792522,0.00027515,2]
[426577921,1782624633000,-1500.0,0.00027515,2]
[426577913,1782624633000,-806.68,0.00027397,10]
[426577952,1782624633000,-500.0,0.00027582,2]
[426577920,1782624633000,-1500.0,0.00027515,2]
[426577951,1782624633000,-500.0,0.00027582,2]
[426577976,1782624633000,-500.0,0.00027582,2]
[426577977,1782624633000,-500.0,0.00027582,2]
[426577979,1782624633000,-500.0,0.00027582,2]
[426577989,1782624633000,-500.0,0.00027582,2]
[426577990,1782624633000,-500.0,0.00027582,2]
[426577981,1782624633000,-500.0,0.00027582,2]
[426577978,1782624633000,-500.0,0.00027582,2]
[426577980,1782624633000,-500.0,0.00027582,2]
[426577982,1782624633000,-500.0,0.00027582,2]
[426577985,1782624633000,-500.0,0.00027582,2]
[426577983,1782624633000,-500.0,0.00027582,2]
[426577988,1782624633000,-500.0,0.00027582,2]
[426577987,1782624633000,-500.0,0.00027582,2]
[426577986,1782624633000,-500.0,0.00027582,2]
[426577991,1782624633000,-500.0,0.00027582,2]
[426577993,1782624633000,-304.202,0.00027584,2]
[426577994,1782624633000,-290.76343591,0.00027584,2]
[426577992,1782624633000,-500.0,0.00027583,2]
[426577949,1782624633000,-500.0,0.00027582,2]
[426577975,1782624633000,-500.0,0.00027582,2]
[426577974,1782624633000,-484.74496409,0.00027582,2]
[426577984,1782624633000,-200.0,0.00027582,2]
[426577972,1782624633000,-448.86768481,0.00027582,2]
[426577973,1782624633000,-15.25503591,0.00027582,2]
[426577955,1782624633000,-500.0,0.00027582,2]
[426577954,1782624633000,-500.0,0.00027582,2]
[426577957,1782624633000,-500.0,0.00027582,2]
[426577958,1782624633000,-500.0,0.00027582,2]
[426577960,1782624633000,-310.28500228,0.00027582,2]
[426577950,1782624633000,-500.0,0.00027582,2]
[426577962,1782624633000,-500.0,0.00027582,2]
[426577956,1782624633000,-500.0,0.00027582,2]
[426577964,1782624633000,-500.0,0.00027582,2]
[426577959,1782624633000,-500.0,0.00027582,2]
[426577961,1782624633000,-189.71499772,0.00027582,2]
[426577966,1782624633000,-399.99999999,0.00027582,2]
[426577968,1782624633000,-500.0,0.00027582,2]
[426577969,1782624633000,-500.0,0.00027582,2]
[426577965,1782624633000,-500.0,0.00027582,2]
[426577967,1782624633000,-500.0,0.00027582,2]
[426577970,1782624633000,-500.0,0.00027582,2]
[426577963,1782624633000,-500.0,0.00027582,2]
[426577971,1782624633000,-51.13231519,0.00027582,2]
[426578025,1782624641000,-500.0,0.00027109,2]
[426578016,1782624641000,-500.0,0.00027109,2]
[426578024,1782624641000,-500.0,0.00027109,2]
[426578015,1782624641000,-500.0,0.00027109,2]
[426578022,1782624641000,-451.90355842,0.00027109,2]
[426578017,1782624641000,-500.0,0.00027109,2]
[426578023,1782624641000,-500.0,0.00027109,2]
[426578014,1782624641000,-500.0,0.00027109,2]
[426578013,1782624641000,-300.0,0.00027109,2]
[426578002,1782624641000,-160.0,0.00020435,2]
[426578009,1782624641000,-500.0,0.00027109,2]
[426578010,1782624641000,-500.0,0.00027109,2]
[426578005,1782624641000,-500.0,0.00027109,2]
[426578008,1782624641000,-500.0,0.00027109,2]
[426578012,1782624641000,-500.0,0.00027109,2]
[426578006,1782624641000,-500.0,0.00027109,2]
[426578007,1782624641000,-241.35035918,0.00027109,2]
[426578004,1782624641000,-500.0,0.00027109,2]
[426578003,1782624641000,-210.55319924,0.00027109,2]
[426578021,1782624641000,-48.09644158,0.00027109,2]
[426578011,1782624641000,-500.0,0.00027109,2]
[426578019,1782624641000,-500.0,0.00027109,2]
[426578029,1782624641000,-5692.69,0.000276,2]
[426578020,1782624641000,-500.0,0.00027109,2]
[426578018,1782624641000,-500.0,0.00027109,2]
[426578047,1782624641000,-156.0,0.00028662,30]
[426578040,1782624641000,-166.66,0.00028333,30]
[426578043,1782624641000,-226.00154409,0.00028519,14]
[426578046,1782624641000,-3801.82694626,0.00028619,2]
[426578042,1782624641000,-500.0,0.00028381,2]
[426578045,1782624641000,-154.38313099,0.00028611,2]
[426578041,1782624641000,-154.38313099,0.00028337,2]
[426578039,1782624641000,-163.09882667,0.00028123,14]
[426578038,1782624641000,-154.38313099,0.00028063,2]
[426578044,1782624641000,-398.6935126,0.00028519,14]
[426578031,1782624641000,-7077.27,0.00027655,2]
[426578033,1782624641000,-166.66,0.00027783,30]
[426578030,1782624641000,-260.97,0.00027604,2]
[426578032,1782624641000,-5494.42,0.00027655,2]
[426578034,1782624641000,-154.38313099,0.00027789,2]
[426578036,1782624641000,-500.0,0.00027857,2]
[426578028,1782624641000,-8378.91526409,0.00027584,2]
[426578027,1782624641000,-500.0,0.00027109,2]
[426578026,1782624641000,-500.0,0.00027109,2]
[426578037,1782624641000,-1145.8,0.00027982,2]
[426578035,1782624641000,-257.75,0.00027797,2]
[426578075,1782624642000,-295.21798524,0.00029326,10]
[426578073,1782624642000,-3801.82694621,0.00029297,2]
[426578065,1782624642000,-6086.0,0.00028695,2]
[426578072,1782624642000,-154.38313099,0.00029159,2]
[426578074,1782624642000,-150.0,0.00029326,10]
[426578076,1782624642000,-1145.8,0.00029347,2]
[426578086,1782624642000,-2500.0,0.00029899,2]
[426578087,1782624642000,-504.6081,0.000299,2]
[426578079,1782624642000,-156.0,0.00029662,30]
[426578085,1782624642000,-355.79,0.00029884,2]
[426578078,1782624642000,-300.0,0.000296,10]
[426578080,1782624642000,-153.0,0.00029662,30]
[426578081,1782624642000,-600.0,0.000297,10]
[426578084,1782624642000,-900.0,0.000298,10]
[426578083,1782624642000,-154.38313107,0.00029707,2]
[426578082,1782624642000,-13076.99509462,0.00029706,2]
[426578088,1782624642000,-1200.0,0.000299,10]
[426578090,1782624642000,-389.02,0.00029964,10]
[426578069,1782624642000,-2419.9162057,0.00028895,2]
[426578077,1782624642000,-154.38313099,0.00029433,2]
[426578068,1782624642000,-154.38313099,0.00028885,2]
[426578100,1782624642000,-12499.98,0.0003,2]
[426578071,1782624642000,-497.64959481,0.00029155,17]
[426578048,1782624642000,-165.0,0.00028662,30]
[426578050,1782624642000,-158.0,0.00028664,30]
[426578049,1782624642000,-153.0,0.00028662,30]
[426578051,1782624642000,-1145.8,0.00028664,2]
[426578053,1782624642000,-273.56698894,0.00028694,2]
[426578054,1782624642000,-415.46967123,0.00028694,2]
[426578060,1782624642000,-500.0,0.00028694,2]
[426578059,1782624642000,-524.90347263,0.00028694,2]
[426578062,1782624642000,-1277.0,0.00028695,2]
[426578052,1782624642000,-500.0,0.00028694,2]
[426578055,1782624642000,-500.0,0.00028694,2]
[426578063,1782624642000,-1230.0,0.00028695,2]
[426578056,1782624642000,-189.56831283,0.00028694,2]
[426578058,1782624642000,-500.0,0.00028694,2]
[426578061,1782624642000,-500.0,0.00028694,2]
[426578057,1782624642000,-500.0,0.00028694,2]
[426578064,1782624642000,-3650.0,0.00028695,2]
[426578067,1782624642000,-166.66,0.00028883,30]
[426578066,1782624642000,-168.67,0.00028803,2]
[426578070,1782624642000,-500.0,0.00029,2]
[426578092,1782624642000,-2201.387,0.00029966,24]
[426578117,1782624642000,-151.0,0.00030097,7]
[426578099,1782624642000,-9999.98,0.0003,2]
[426578118,1782624642000,-300.0,0.00030099,10]
[426578134,1782624642000,-1501.07,0.000301,7]
[426578120,1782624642000,-500.0,0.00030099,2]
[426578121,1782624642000,-577.56430409,0.00030099,2]
[426578122,1782624642000,-17782.14591207,0.000301,2]
[426578119,1782624642000,-666.0,0.00030099,10]
[426578124,1782624642000,-263.06334692,0.000301,7]
[426578125,1782624642000,-7658.98451246,0.000301,7]
[426578126,1782624642000,-3892.42067024,0.000301,7]
[426578127,1782624642000,-644.31012685,0.000301,7]
[426578123,1782624642000,-1762511.68503523,0.000301,7]
[426578129,1782624642000,-339.45155238,0.000301,7]
[426578128,1782624642000,-1714.32535729,0.000301,7]
[426578130,1782624642000,-406450.0024684,0.000301,7]
[426578131,1782624642000,-422.89223244,0.000301,7]
[426578132,1782624642000,-11279.46768197,0.000301,7]
[426578135,1782624642000,-13431.07560161,0.000301,7]
[426578136,1782624642000,-18549.71018159,0.000301,7]
[426578133,1782624642000,-502.787504,0.000301,7]
[426578116,1782624642000,-7981.4769739,0.00030057,2]
[426578113,1782624642000,-501.2739719,0.00030048,2]
[426578089,1782624642000,-1966.74661278,0.00029948,2]
[426578115,1782624642000,-18348.6279516,0.00030057,2]
[426578093,1782624642000,-3801.82694621,0.00029974,2]
[426578095,1782624642000,-21767.44,0.0003,2]
[426578094,1782624642000,-500.0,0.00029999,2]
[426578091,1782624642000,-179.563,0.00029966,24]
[426578097,1782624642000,-24999.98,0.0003,2]
[426578096,1782624642000,-14999.99,0.0003,2]
[426578098,1782624642000,-2499.98,0.0003,2]
[426578102,1782624642000,-224.00119332,0.0003,2]
[426578101,1782624642000,-1260.8173,0.0003,2]
[426578112,1782624642000,-176.4323613,0.00030048,2]
[426578104,1782624642000,-5757.28343504,0.0003,2]
[426578105,1782624642000,-1200.16603306,0.0003,2]
[426578107,1782624642000,-182.81455481,0.0003,31]
[426578108,1782624642000,-1145.8,0.00030029,2]
[426578106,1782624642000,-429.47984974,0.0003,2]
[426578110,1782624642000,-7958.52642335,0.00030042,2]
[426578111,1782624642000,-15989.10704905,0.00030042,2]
[426578109,1782624642000,-1176.3770027,0.00030042,2]
[426578114,1782624642000,-4311.2311769,0.00030054,2]
[426578103,1782624642000,-15000.0,0.0003,2]
[426578141,1782624643000,-169.44269098,0.00020839,7]
[426578145,1782624643000,-2250.01120294,0.000301,7]
[426578142,1782624643000,-1207.40927558,0.000301,7]
[426578144,1782624643000,-203.45841393,0.000301,7]
[426578143,1782624643000,-412.0,0.00025358,2]
[426578146,1782624643000,-254.16403651,0.00022064,7]
[426578147,1782624643000,-10176.71183558,0.000301,7]
[426578149,1782624646000,-1780.13134354,0.000301,7]
[426578151,1782624647000,-522.78396786,0.000301,7]
[426578150,1782624647000,-10932.3048,0.000301,7]
[426578156,1782624700000,175.29,0.0002963,120]
[426578159,1782624885000,-151.0,0.0001866,2]
[426578160,1782624938000,-208.6184678,0.0001866,2]
[426578161,1782624992000,-150.0,0.00020158,2]
[426578162,1782625016000,177.7008146,0.000315,120]
[426578163,1782625045000,-279.37980995,0.00021657,2]
[426578164,1782625057000,-220.62019005,0.00021657,2]
[426578166,1782625110000,-250.0,0.00023408,2]
[426578185,1782625164000,-500.0,0.0001856,2]
[426578186,1782625209000,-250.0,0.00020416,2]
[426578187,1782625238000,250.0,0.00014,2]
[426578188,1782625262000,-150.0,0.00023408,2]
[426578189,1782625262000,235.46254078,0.00037322,120]
[426578190,1782625316000,-391.24867533,0.0001856,2]
[426578191,1782625487000,19995.621,0.00037322,120]
[426578192,1782625638000,-108.75132467,0.0001856,2]
[426578194,1782625638000,-150.0,0.00018585,2]
[426578193,1782625638000,-218.75814337,0.0001856,2]
[426578196,1782625638000,-151.0,0.0001866,2]
[426578197,1782625638000,-250.0,0.00020416,2]
[426578195,1782625638000,-222.07765504,0.0001861,2]
[426578199,1782625638000,-165.62,0.00021682,2]
[426578201,1782625638000,-300.0,0.00023407,2]
[426578200,1782625638000,-400.0,0.00022121,2]
[426578202,1782625638000,-151.0,0.00023408,2]
[426578204,1782625638000,-109.89476274,0.00023408,2]
[426578203,1782625638000,-150.0,0.00023408,2]
[426578198,1782625638000,-250.0,0.00020416,2]
[426578205,1782625689000,-40.10523726,0.00023408,2]
[426578206,1782625743000,-500.0,0.0001846,2]
[426578213,1782625748000,-206.21958932,0.00023408,2]
[426578208,1782625748000,-930.2374958,0.00023308,2]
[426578207,1782625748000,-150.0,0.00020884,2]
[426578209,1782625748000,-406.0,0.00023408,2]
[426578210,1782625748000,-151.70776136,0.00023408,2]
[426578211,1782625748000,-401.0,0.00023408,2]
[426578212,1782625748000,-399.0,0.00023408,2]
[426578219,1782625748000,-214.02566517,0.00023876,7]
[426578215,1782625748000,-160.0,0.00023427,2]
[426578217,1782625748000,-1000.0,0.00023429,2]
[426578216,1782625748000,-216.27664969,0.00023427,2]
[426578218,1782625748000,-400.0,0.00023517,2]
[426578220,1782625748000,-524.27533866,0.00025528,2]
[426578221,1782625748000,-181.3829276,0.00025528,2]
[426578214,1782625748000,-250.0,0.00023416,2]
[426578226,1782625756000,-991.00051826,0.00025906,2]
[426578222,1782625756000,-191.34173374,0.00025528,2]
[426578224,1782625756000,-250.0,0.00025748,2]
[426578223,1782625756000,-166.66,0.00025651,30]
[426578225,1782625756000,-199.5,0.00025884,2]
[426578228,1782625756000,-156.52633102,0.00025991,2]
[426578231,1782625756000,-156.52633102,0.00025991,2]
[426578230,1782625756000,-156.52633102,0.00025991,2]
[426578229,1782625756000,-156.52633102,0.00025991,2]
[426578234,1782625756000,-8121.63140467,0.00026086,2]
[426578232,1782625756000,-404.0,0.00026086,2]
[426578233,1782625756000,-2868.03,0.00026086,2]
[426578227,1782625756000,-4541.78,0.00025991,2]
[426578235,1782625796000,-644.31012685,0.00026086,2]
[426578236,1782625808000,-644.31012685,0.00026086,2]
[426578237,1782625821000,-247.90834163,0.00026086,2]
[426578260,1782625831000,-206.77435877,0.0002817,7]
[426578256,1782625831000,-191.8038175,0.000275,7]
[426578262,1782625831000,-740.61998281,0.00028204,2]
[426578264,1782625831000,-157.08334658,0.00028339,2]
[426578268,1782625831000,-202.91382037,0.0002849,2]
[426578266,1782625831000,-420.62028619,0.00028379,2]
[426578265,1782625831000,-166.66,0.00028351,30]
[426578257,1782625831000,-157.08334658,0.00027517,2]
[426578270,1782625831000,-651.72622502,0.00028559,2]
[426578269,1782625831000,-443.70636037,0.00028559,2]
[426578263,1782625831000,-173.81,0.00028252,2]
[426578254,1782625831000,-166.66,0.00027451,30]
[426578253,1782625831000,-175.29,0.00027368,2]
[426578258,1782625831000,-157.08334658,0.00027791,2]
[426578255,1782625831000,-308.1961825,0.000275,7]
[426578261,1782625831000,-146.53040744,0.00028204,2]
[426578251,1782625831000,-46.23709769,0.0002709,2]
[426578252,1782625831000,-306.75,0.00027321,4]
[426578248,1782625831000,-379.70449908,0.00026363,2]
[426578250,1782625831000,-394.00366431,0.0002709,2]
[426578249,1782625831000,-166.66,0.00026551,30]
[426578247,1782625831000,-183.51127927,0.00026363,2]
[426578246,1782625831000,-166.80947795,0.00026363,2]
[426578245,1782625831000,-160.0,0.00026112,2]
[426578259,1782625831000,-157.08334658,0.00028065,2]
[426578272,1782625831000,-220.79,0.00028592,2]
[426578267,1782625831000,-973.69544383,0.0002849,2]
[426578273,1782625831000,-157.08334658,0.00028613,2]
[426578299,1782625831000,-1113.24658586,0.00029255,2]
[426578298,1782625831000,-4344.7286,0.00029228,2]
[426578296,1782625831000,-150.0,0.00029195,2]
[426578297,1782625831000,-157.83058977,0.00029195,2]
[426578292,1782625831000,-20028.0,0.0002912,20]
[426578295,1782625831000,-157.08334659,0.00029161,2]
[426578294,1782625831000,-2178.2825752,0.0002914,2]
[426578271,1782625831000,-756.98741461,0.00028559,2]
[426578290,1782625831000,-1769.0,0.00029048,2]
[426578289,1782625831000,-1797.0,0.00029048,2]
[426578291,1782625831000,-1815.0,0.00029048,2]
[426578288,1782625831000,-1792.0,0.00029048,2]
[426578293,1782625831000,-3934.0002441,0.0002914,2]
[426578287,1782625831000,-411.0,0.00029048,2]
[426578286,1782625831000,-411.0,0.00029048,2]
[426578275,1782625831000,-153.0,0.00028663,30]
[426578276,1782625831000,-154.0,0.00028663,30]
[426578278,1782625831000,-3564.0,0.00029048,2]
[426578277,1782625831000,-157.08334658,0.00028887,2]
[426578274,1782625831000,-5000.0,0.00028615,2]
[426578280,1782625831000,-282.0,0.00029048,2]
[426578282,1782625831000,-1277.0,0.00029048,2]
[426578284,1782625831000,-278.0,0.00029048,2]
[426578283,1782625831000,-150.0,0.00029048,2]
[426578285,1782625831000,-3648.0,0.00029048,2]
[426578281,1782625831000,-1361.0,0.00029048,2]
[426578308,1782625832000,-408.20337246,0.00029468,2]
[426578307,1782625832000,-500.0,0.00029468,7]
[426578309,1782625832000,-500.0,0.00029468,2]
[426578306,1782625832000,-518.41064345,0.00029468,7]
[426578302,1782625832000,-259.53,0.00029345,10]
[426578303,1782625832000,-25872.3768633,0.00029355,2]
[426578301,1782625832000,-20642.9105577,0.00029329,2]
[426578300,1782625832000,-150.0,0.00029327,2]
[426578310,1782625832000,-567.43243084,0.00029468,2]
[426578305,1782625832000,-2500.0,0.00029369,2]